Cogmind - Beta 11.2 @@@ ROGUE MODE // 2023.01.03 @ 14:35:28 // Winter2022/Polymind Player: block30 Result: Destroyed by S-27 Virus with Autogun Performance ------------- Evolutions (4) 2000 Regions Visited (7) 1400 Robots Destroyed (7) 35 Value Destroyed (312) 312 Prototype IDs (0) 0 Alien Tech Used (0) 0 Bonus (3295) 3295 TOTAL SCORE: 6242 Bonus ------- Polymind Skill 2325 Pacifist 470 Entered DSFs 500 Cogmind --------- Core Integrity 0/850 Matter 0/0 Energy 96/100 System Corruption 2% Temperature Cool (2) Movement Walking (120) Location -6/Lower Caves Parts ------- > --- POWER (1) -------- Light Angular Momentum Engine > --- PROPULSION (2) --- Carbon-fiber Leg Carbon-fiber Leg > --- UTILITY (1) ------ Advanced Heat Sink > --- WEAPON (1) ------- Heavy Laser > --- INVENTORY (1) ---- (None) Peak State ------------ > --- POWER ------------ Light Angular Momentum Engine > --- PROPULSION ------- Carbon-fiber Leg Carbon-fiber Leg > --- UTILITY ---------- Advanced Heat Sink > --- WEAPON ----------- Heavy Laser > --- INVENTORY -------- (None) [Rating: 20] Favorites ----------- Power Light Angular Momentum Engine Engine Light Angular Momentum Engine Power Core Light Nuclear Core Propulsion Aluminum Leg Leg Aluminum Leg Wheel Wheel Hover Unit Improved Hover Unit Utility Advanced Heat Sink Device Advanced Heat Sink Storage Medium Matter Pod Processor Visual Processing Unit Weapon Heavy Laser Energy Gun Heavy Laser Build | -11 -10 -9 -8 -7 -7 -6 -6 ------- Run | Scr Mat Mat Mat Fac DSF Fac Low Slots Evolved . | . . . . . . . . Power . | . . . . . . . . Propulsion . | . . . . . . . . Utility . | . . . . . . . . Weapon . | . . . . . . . . Parts Attached . | . . . . . . . . Power . | . . . . . . . . Engine . | . . . . . . . . Core . | . . . . . . . . Reactor . | . . . . . . . . Propulsion . | . . . . . . . . Treads . | . . . . . . . . Leg . | . . . . . . . . Wheel . | . . . . . . . . Hover . | . . . . . . . . Flight . | . . . . . . . . Utility . | . . . . . . . . Device . | . . . . . . . . Storage . | . . . . . . . . Processor . | . . . . . . . . Hackware . | . . . . . . . . Protection . | . . . . . . . . Artifact . | . . . . . . . . Weapon . | . . . . . . . . Energy Gun . | . . . . . . . . Energy Cannon . | . . . . . . . . Ballistic Gun . | . . . . . . . . Ballistic Cannon . | . . . . . . . . Launcher . | . . . . . . . . Special Weapon . | . . . . . . . . Impact Weapon . | . . . . . . . . Slashing Weapon . | . . . . . . . . Piercing Weapon . | . . . . . . . . Special Melee Weapon . | . . . . . . . . Unidentified Prototypes . | . . . . . . . . Parts Lost 8 | . . 1 3 . . . 4 Power 3 | . . 1 1 . . . 1 Propulsion 3 | . . . 1 . . . 2 Utility . | . . . . . . . . Weapon 2 | . . . 1 . . . 1 Highest Loss Streak 2 | . . 1 2 . . . 2 To Critical Strikes . | . . . . . . . . Average Slot Usage (%) 41 | . . 33 27 . . . 55 Engine 12 | . . 7 . . . . 18 Leg 2 | . . . 12 . . . . Device 12 | . . . 6 . . . 18 Energy Gun 12 | . . . 6 . . . 18 Naked Turns 1263 | . 54 108 409 57 62 395 178 Heaviest Build 14 | . . 5 9 . . . 14 Greatest Support 30 | 3 3 20 20 3 3 3 30 Greatest Overweight (x) 4 | . . . . . . . 4 Average Overweight (x) 1 | . . . . . . . 3 Largest Inventory Capacity 1 | . . 1 1 . . . 1 Average Capacity . | . . . . . . . . Most Carried . | . . . . . . . . Average Carried . | . . . . . . . . Final Capacity 1 | . . . . . . . 1 Final Carried . | . . . . . . . . Class Distribution -------------------- 64% | Grunt 33% | Cogmind Dominant Class ---------------- Cogmind | -10/Materials Cogmind | -9/Materials Cogmind | -8/Materials Cogmind | -7/Factory Cogmind | -7/DSF Cogmind | -6/Factory Grunt | -6/Lower Caves Resources | -11 -10 -9 -8 -7 -7 -6 -6 ----------- Run | Scr Mat Mat Mat Fac DSF Fac Low Matter Collected . | . . . . . . . . Remotely . | . . . . . . . . Salvage Created 259 | . . . 188 . . . 71 Parts 14 | . . . 9 . . . 5 Haulers Intercepted . | . . . . . . . . Recyclers Shooed . | . . . . . . . . Parts Field Recycled . | . . . . . . . . Retrieved Matter . | . . . . . . . . Parts Self-Destructed 9 | . . . . . . . 9 Prevented 3 | . . . . . . . 3 Kills | -11 -10 -9 -8 -7 -7 -6 -6 ------- Run | Scr Mat Mat Mat Fac DSF Fac Low Combat Hostiles Destroyed 7 | . . . 3 . . . 4 Guns 7 | . . . 3 . . . 4 Classes Destroyed 2 | . . . 1 . . . 1 Swarmer 2 | . . . . . . . 2 Grunt 5 | . . . 3 . . . 2 Best Kill Streak 2 | . . . 2 . . . 2 Combat Bots Only 2 | . . . 2 . . . 2 Max Kills in Single Turn 1 | . . . 1 . . . 1 Gunslinging . | . . . . . . . . Exploded . | . . . . . . . . Melee . | . . . . . . . . Uniques/NPCs Destroyed . | . . . . . . . . Combat | -11 -10 -9 -8 -7 -7 -6 -6 -------- Run | Scr Mat Mat Mat Fac DSF Fac Low Damage Taken 2537 | . . 394 674 . . 147 1322 Core 1498 | . . 323 315 . . 147 713 Absorbed by Shields . | . . . . . . . . Core Remaining (%) 72 | 100 100 19 42 . 100 . . Volleys Fired 41 | . . . 16 . . . 25 Largest 1 | . . . 1 . . . 1 Hottest 69 | . . . 65 . . . 69 Shots Fired 43 | . . . 17 . . . 26 Gun 43 | . . . 17 . . . 26 Cannon . | . . . . . . . . Launcher . | . . . . . . . . Special . | . . . . . . . . Kinetic . | . . . . . . . . Thermal 43 | . . . 17 . . . 26 Explosive . | . . . . . . . . Electromagnetic . | . . . . . . . . Robot Hit Streak 9 | . . . 6 . . . 9 Robot Miss Streak 3 | . . . 1 . . . 3 Penetration Max . | . . . . . . . . Secondary Targets . | . . . . . . . . Shots Hit Robots 31 | . . . 14 . . . 17 Core Hits 21 | . . . 12 . . . 9 Critical Kills . | . . . . . . . . Critical Parts Destroyed . | . . . . . . . . Critical Strikes 1 | . . . 1 . . . . Burn 1 | . . . 1 . . . . Melee Attacks . | . . . . . . . . Impact . | . . . . . . . . Slashing . | . . . . . . . . Piercing . | . . . . . . . . Sneak Attacks . | . . . . . . . . Combat Hostiles . | . . . . . . . . Follow-up Attacks . | . . . . . . . . Damage Inflicted 642 | . . . 292 . . . 350 Guns 596 | . . . 246 . . . 350 Cannons . | . . . . . . . . Explosions . | . . . . . . . . Melee . | . . . . . . . . Ramming 46 | . . . 46 . . . . Kinetic . | . . . . . . . . Thermal 596 | . . . 246 . . . 350 Explosive . | . . . . . . . . Electromagnetic . | . . . . . . . . Impact . | . . . . . . . . Slashing . | . . . . . . . . Piercing . | . . . . . . . . Highest Corruption 2 | . . . 2 . . 2 2 Average Corruption 2 | . . . 2 . . 2 2 Corruption Purged . | . . . . . . . . Corruption Blocked . | . . . . . . . . Effects 31 | . . . 8 . . 3 20 Message Errors 9 | . . . 3 . . . 6 Heat Flow Errors 1 | . . . . . . . 1 Energy Discharges 6 | . . . 1 . . 1 4 Data Loss (minor) 5 | . . . . . . 1 4 Data Loss (major) 4 | . . . 3 . . . 1 Misfires 2 | . . . 1 . . . 1 Alerts 4 | . . . . . . 1 3 Overload Shots . | . . . . . . . . Overflow Damage . | . . . . . . . . Projectiles . | . . . . . . . . Explosions . | . . . . . . . . Melee . | . . . . . . . . Knockbacks . | . . . . . . . . Impact . | . . . . . . . . Kinetic . | . . . . . . . . Secondary . | . . . . . . . . Self-Inflicted Damage 21 | . . . 21 . . . . Shots . | . . . . . . . . Rammed 9 | . . . 8 . . . 1 Targets Rammed 9 | . . . 8 . . . 1 Kicked . | . . . . . . . . Crushed . | . . . . . . . . Highest Temperature 156 | . . 23 65 . . . 156 Average Temperature 64 | . . 15 33 . . . 95 Received Heat Transfer 776 | . . 129 306 . . . 341 Siege Activations . | . . . . . . . . Robots Corrupted . | . . . . . . . . Combat Hostiles . | . . . . . . . . Parts Fried . | . . . . . . . . Impact Corruptions . | . . . . . . . . Robots Melted . | . . . . . . . . Combat Hostiles . | . . . . . . . . Parts Melted 3 | . . . . . . . 3 Heat Transferred 1295 | . . . 629 . . . 666 Parts Sabotaged . | . . . . . . . . Parts Stolen . | . . . . . . . . Parts Stripped . | . . . . . . . . Power Chain Reactions . | . . . . . . . . Missiles Intercepted . | . . . . . . . . Alert | -11 -10 -9 -8 -7 -7 -6 -6 ------- Run | Scr Mat Mat Mat Fac DSF Fac Low Peak Influence 113 | . . 113 105 52 51 41 . Initial 47 | . . . 47 47 36 26 . Average 41 | . . 38 45 47 43 40 . Maximum Alert Level . | . . . . . . . . Low Security (%) 100 | 100 100 100 100 100 100 100 . Level 1 . | . . . . . . . . Level 2 . | . . . . . . . . Level 3 . | . . . . . . . . Level 4 . | . . . . . . . . Level 5 . | . . . . . . . . High Security . | . . . . . . . . Max Security . | . . . . . . . . Squads Dispatched 3 | . . . 3 . . . . Investigation 1 | . . . 1 . . . . Extermination . | . . . . . . . . Reinforcement 2 | . . . 2 . . . . Assault . | . . . . . . . . Garrison . | . . . . . . . . Intercept . | . . . . . . . . Searches Triggered . | . . . . . . . . Construction Impeded . | . . . . . . . . Haulers Reinforced . | . . . . . . . . Active Scanning Responses . | . . . . . . . . Cargo Convoy Interrupts . | . . . . . . . . Stealth | -11 -10 -9 -8 -7 -7 -6 -6 --------- Run | Scr Mat Mat Mat Fac DSF Fac Low Distress Signals 1 | . . 1 . . . . . Communications Jammed . | . . . . . . . . Distress Signals . | . . . . . . . . Times Spotted 65 | . 1 10 29 . . 1 24 Peak Tracking Total 11 | . 1 10 11 . 1 1 6 Tactical Retreats 6 | . . 1 2 . 1 . 2 Traps | -11 -10 -9 -8 -7 -7 -6 -6 ------- Run | Scr Mat Mat Mat Fac DSF Fac Low Traps Triggered 2 | . . . 1 . . 1 . Indirectly . | . . . . . . . . Trap Hack Attempts . | . . . . . . . . Triggered . | . . . . . . . . Disarmed . | . . . . . . . . Reprogrammed . | . . . . . . . . Reused . | . . . . . . . . Traps Extracted . | . . . . . . . . Installed . | . . . . . . . . Triggered 1 | . . . . . . . 1 Machines | -11 -10 -9 -8 -7 -7 -6 -6 ---------- Run | Scr Mat Mat Mat Fac DSF Fac Low Machines Disabled . | . . . . . . . . Max in Single Turn . | . . . . . . . . Machines Sabotaged . | . . . . . . . . Garrisons Compromised . | . . . . . . . . Overloaded Fab Kills . | . . . . . . . . Hacking | -11 -10 -9 -8 -7 -7 -6 -6 --------- Run | Scr Mat Mat Mat Fac DSF Fac Low Machines Accessed 4 | . . 1 1 2 . . . Terminals 3 | . . 1 1 1 . . . Fabricators 1 | . . . . 1 . . . Repair Stations . | . . . . . . . . Recycling Units . | . . . . . . . . Scanalyzers . | . . . . . . . . Garrison Access . | . . . . . . . . Total Hacks 9 | . . 2 5 2 . . . Successful 6 | . . 1 3 2 . . . Failed 3 | . . 1 2 . . . . Catastrophic 1 | . . . 1 . . . . Database Lockouts . | . . . . . . . . Manual 3 | . . . 3 . . . . Terminals 8 | . . 2 5 1 . . . Fabricators 1 | . . . . 1 . . . Repair Stations . | . . . . . . . . Recycling Units . | . . . . . . . . Scanalyzers . | . . . . . . . . Garrison Access . | . . . . . . . . Terminal Hacks 5 | . . 1 3 1 . . . Record 3 | . . . 3 . . . . Open DSF 1 | . . . . 1 . . . Dispatch Records 1 | . . 1 . . . . . Fabricator Hacks 1 | . . . . 1 . . . Network Status 1 | . . . . 1 . . . Repair Station Hacks . | . . . . . . . . Recycling Unit Hacks . | . . . . . . . . Scanalyzer . | . . . . . . . . Garrison Access Hacks . | . . . . . . . . Unauthorized Hacks . | . . . . . . . . Terminals . | . . . . . . . . Fabricators . | . . . . . . . . Repair Stations . | . . . . . . . . Recycling Units . | . . . . . . . . Scanalyzers . | . . . . . . . . Garrison Access . | . . . . . . . . Data Cores Recovered . | . . . . . . . . Used . | . . . . . . . . Hacking Detections 2 | . . 1 1 . . . . Full Trace Events 1 | . . . 1 . . . . Feedback Events . | . . . . . . . . Feedback Blocked . | . . . . . . . . Robot Schematics Acquired . | . . . . . . . . Robots Built . | . . . . . . . . Authchips . | . . . . . . . . Time . | . . . . . . . . Total Robot Build Rating . | . . . . . . . . Part Schematics Acquired . | . . . . . . . . Parts Built . | . . . . . . . . Authchips . | . . . . . . . . Time . | . . . . . . . . Total Part Build Rating . | . . . . . . . . Parts Repaired . | . . . . . . . . Time . | . . . . . . . . Parts Recycled . | . . . . . . . . Recycled Matter . | . . . . . . . . Retrieved Matter . | . . . . . . . . Retrieved Components . | . . . . . . . . Parts Scanalyzed . | . . . . . . . . Part Schematics Acquired . | . . . . . . . . Parts Damaged . | . . . . . . . . Bothacking | -11 -10 -9 -8 -7 -7 -6 -6 ------------ Run | Scr Mat Mat Mat Fac DSF Fac Low Used RIF Installer . | . . . . . . . . Robots Hacked 4 | . . . 2 . . . 2 Non-combat 1 | . . . 1 . . . . Combat 3 | . . . 1 . . . 2 Robot Hacks Applied 6 | . . . 4 . . . 2 map_route 1 | . . . 1 . . . . mark_security 1 | . . . 1 . . . . find_shortcuts 3 | . . . 1 . . . 2 find_garrison 1 | . . . 1 . . . . Relay Couplers Released . | . . . . . . . . Fabnet Peak Effective % . | . . . . . . . . Robots Rewired . | . . . . . . . . Allies Hacked . | . . . . . . . . Hacks Repelled . | . . . . . . . . Allies | -11 -10 -9 -8 -7 -7 -6 -6 -------- Run | Scr Mat Mat Mat Fac DSF Fac Low Total Allies . | . . . . . . . . Largest Group . | . . . . . . . . Highest-Rated Group . | . . . . . . . . Highest-Rated Ally . | . . . . . . . . Total Orders . | . . . . . . . . Ally Attacks . | . . . . . . . . Total Damage . | . . . . . . . . Kills . | . . . . . . . . Allies Corrupted . | . . . . . . . . Allies Melted . | . . . . . . . . Intel | -11 -10 -9 -8 -7 -7 -6 -6 ------- Run | Scr Mat Mat Mat Fac DSF Fac Low Robot Analysis Total 4 | . . 1 2 . . . 1 Derelict Logs Recovered 1 | . . . . . . . 1 Drone Launches . | . . . . . . . . Drone Recoveries . | . . . . . . . . Exploration | -11 -10 -9 -8 -7 -7 -6 -6 ------------- Run | Scr Mat Mat Mat Fac DSF Fac Low Turns Passed 3728 | 12 54 169 608 57 62 395 2371 Spaces Moved 2502 | 21 108 292 473 113 52 319 1124 Core 2281 | 21 108 216 340 113 52 319 1112 Treads . | . . . . . . . . Legs 142 | . . . 130 . . . 12 Wheels 76 | . . 76 . . . . . Hover 3 | . . . 3 . . . . Flight . | . . . . . . . . Fastest Speed 50 | 50 50 50 50 50 50 50 50 Average Speed 122 | 50 50 57 69 50 50 50 202 Slowest Speed 250 | 50 50 80 120 50 50 50 250 Overloaded Moves . | . . . . . . . . Propulsion Burnouts . | . . . . . . . . Robots Hopped . | . . . . . . . . Cave-ins Triggered . | . . . . . . . . Exploration Rate (%) 28 | 3 22 27 32 5 38 6 91 Regions Visited 7 Branch Regions 1 Pre-discovered Areas 1 | . . . . . . . 1 Known Exits Taken 2 | . . . 1 1 . . . Unknown Exits Taken 4 | 1 1 1 . . . 1 . Scrap Searched 1 | . . . . . . . 1 Spaces Dug . | . . . . . . . . Terrain Destroyed . | . . . . . . . . Melee . | . . . . . . . . Projectile . | . . . . . . . . AOE . | . . . . . . . . Terrain Rammed . | . . . . . . . . Walls Destroyed . | . . . . . . . . Machines Disabled . | . . . . . . . . Actions | -11 -10 -9 -8 -7 -7 -6 -6 --------- Run | Scr Mat Mat Mat Fac DSF Fac Low Total 3106 | 22 107 291 736 112 87 553 1198 Wait 559 | 2 . . 240 . 35 235 47 Move 2495 | 20 107 291 472 112 51 318 1124 Hop . | . . . . . . . . Pick Up . | . . . . . . . . Fast Attach . | . . . . . . . . Attach . | . . . . . . . . Detach . | . . . . . . . . Swap . | . . . . . . . . Drop . | . . . . . . . . Fire 41 | . . . 16 . . . 25 Melee . | . . . . . . . . Ram 9 | . . . 8 . . . 1 Kick . | . . . . . . . . Crush . | . . . . . . . . Escape Stasis . | . . . . . . . . Rewire 2 | . . . . . 1 . 1 Trap . | . . . . . . . . Miscellaneous . | . . . . . . . . Route ------- -11/Scrapyard -10/Materials -9/Materials -8/Materials -7/Factory (discovered 2 exits: [*Low] / DSF) -7/DSF -6/Factory -6/Lower Caves History --------- Turn | Location | Event 5 | -11/Scrapyard | Discovered new exit (range 13) 13 | -11/Scrapyard | Entered Materials 61 | -10/Materials | Discovered new exit (range 7) 67 | -10/Materials | Entered another Materials area 216 | -9/Materials | Core integrity fell below 50% 230 | -9/Materials | Discovered new exit (range 12) 235 | -9/Materials | Core integrity fell below 20% 236 | -9/Materials | Entered another Materials area 832 | -8/Materials | Discovered new exit (range 15) 843 | -8/Materials | Identified exit to Factory 844 | -8/Materials | Core integrity fell below 50% 844 | -8/Materials | Entered Factory 900 | -7/Factory | Discovered new exit (range 16) 900 | -7/Factory | Identified exit to DSF 901 | -7/Factory | Entered DSF 916 | -7/DSF | Discovered new exit (range 12) 926 | -7/DSF | Additional patrols routed to DSF 963 | -7/DSF | Entered Factory 1074 | -6/Factory | Discovered new exit (range 8) 1358 | -6/Factory | Entered Lower Caves 1370 | -6/Lower Caves | Encountered a Warlord checkpoint 3671 | -6/Lower Caves | Core integrity fell below 50% 3714 | -6/Lower Caves | Core integrity fell below 20% 3729 | -6/Lower Caves | Destroyed by S-27 Virus with Autogun Last Messages --------------- 02655_ System corrupted: Component data lost. 02746_ Terminal disabled. 02811_ Acquired derelict log, extracted data. World map updated: -6/Factory. 03008_ Searching scrap... 03008_ Found Imp. Medium Treads. 03008_ Found 19 Matter. 03033_ System corrupted: Energy discharge (-25). 03196_ VWWHU:>/DKDZGJZ2I/=9MUAG 03258_ System corrupted: Substantial component data lost. 03338_ XBNTK/ 03582_ System corrupted: Energy discharge (-23). 03668_ S-27 Virus destroyed. 03673_ Lgt. Angular Momentum Engine destroyed. 03676_ S-27 Virus destroyed. 03680_ VTOL Module fries itself beyond repair. 03688_ Hvy. Laser destroyed. 03688_ Released control of G-50 Soldier. 03716_ Took control of G-50 Soldier. Map ----- +----------------------------------------------------+ | ???????????????????????????????????????????????? | | ???????????????????????????????????????????????? | | ???????????????????????????????????????????????? | | ???????????????????????????????????????????????? | | ???????????????????????????????????????????????? | | ???????????????????????????????????????????????? | | ???????????????????????????????????????????????? | | ???????????????????????????????????????????????? | | ???????????????????????????????????????????????? | | ???????????????????????????????????????????????? | | ???????????????????????????????????????????????? | | ???????????????????????????????????????????????? | | ???????????????????????????????????????????????? | | ???????????????????????????????????????????????? | | ???????????????????????????????????????????????? | | ???????????????????????????????????????????????? | | ???????????????????????????????????????????????? | | ?????????????????????##?????????????????###??#?? | | ????????????????????## ???????????????### #?? ## | | ????????????????????# ##????????????## #### # | | ????????????????????# #???????????## # # | | ????????????????????# ##???????#### # | | ?????????????????????# ######### | | ??????????????????????# gs g | | ?????????????????????## s | | ?????????????????????# g ####### | | ?????????????????????# ##???## | | ?????????????????????# ###????# ## | | ?????????????????????# ???????# ### | | ?????????????????????# ???????# ##?# | | ?????????????????????# ???????# ##??# | | ?????????????????????# ???????# ##??# # | | ?????????????????????# ??????# #??# ## | | ?????????????????????#???????#### ##?# #####? | | ????????????????????????????????###?# #????? | | ????????????????????????????????????## ##????? | | ?????????????????????????????????????####??????? | | ?????????????????????????????????????????####### | | ?????????????????????????# ????##??????## | | ???????????????????????? $ ## #???## | | ???????????????????????? % ### # | | ??????????????????????????# % ## | | ??????????????????????????# #? | | ??????????????????????????# #### #? | | ??????????????????????????# ##??## #? | | ????????????????????????? #?????#### | | ????????????????????????? ## ?????????# | | ?????????????????????????? ?##?????????# | | ?????????????????????????? ?????????????# | | ?????????????????????????? ??????????????# | +----------------------------------------------------+ Best States ------------- Heat Dissipation 42 Energy Generation 23 Energy Capacity 110 Matter Stores 5 Matter Capacity 100 Sight Range 18 Robot Scan Range 15 Terrain Scan Density 10 Evasion (%) 55 Item Schematics ----------------- None Robot Schematics ------------------ None Fabricated ------------ Nothing Alien Tech Used ----------------- None Achievements -------------- None Challenges ------------ None Polymind | -11 -10 -9 -8 -7 -7 -6 -6 ---------- Run | Scr Mat Mat Mat Fac DSF Fac Low Hosts 5 | . . 1 2 . . . 2 Combat Hostiles 3 | . . . 1 . . . 2 Allies . | . . . . . . . . Unique Host Classes 3 | . . 1 2 . . . . Average Host Suspicion 98 | . . 44 100 . . . 100 Unsuspicious Activity 47 | . . 47 . . . . . Returns to Shadow . | . . . . . . . . Fuzzy Dispatches . | . . . . . . . . Protomatter Created 174 | . . . . . . . 174 Used 148 | . . 5 53 . . . 90 Decayed 69 | . . . . . . . 69 Highest Spend 45 | . . 5 30 . . . 45 Top 5 Hosts by Kills: G-50 Soldier (-6/Lower Caves: 4) G-47 Trooper (-8/Materials: 3) Game ------ Seed CombatTargetingNanovents Manual? 0 Play Time 00:28:39 Cumulative 3.0 hours Start 2023.01.03 @ 14:08:18 End 2023.01.03 @ 14:35:28 Sessions 1 Manual Loads 0 Difficulty Rogue Special Mode Winter2022/Polymind Game No. 14 Rogue 12 Adventurer 1 Explorer 1 Win Type - Total 0 Types 0/0/0/0/0/0/0/0/0 Lore% 12 Gallery% 0 Achievement% 12 Wizard Run 0 Options --------- ASCII 0 Keyboard 1 Movement Arrows Keybinds 0 Fullscreen 2 Font 18/TerminusBold Map View 76x50 Tactical HUD 1 Map Filters NONE Filters NONE Steam 1 RUN: 8f9af9d7-1e08-4b48-adc8-2bce2c7f258d